bitfinex/quotes_SOLUSD_20251204
["timestamp","ask_amount","ask_price","bid_price","bid_amount"]
[1764859299877,12.49367752,142.96,142.91,0.71]
[1764859300082,0.68,143.02,142.94,11.81367752]
[1764859300303,11.81367752,142.99,142.95,7.84]
[1764859300502,0.68,143.02,142.95,20.36367752]
[1764859300706,8.52,143.04,142.96,12.52367752]
[1764859300892,8.52,143.04,142.97,12.52367752]
[1764859300893,11.81367752,143.03,142.97,12.52367752]
[1764859301098,11.81367752,143.03,142.98,7.84]
[1764859301099,11.81367752,143.01,142.98,7.84]
[1764859301895,19.48634227,143.01,142.98,7.84]
[1764859302102,12.49367752,143.01,142.98,14.83397455]
[1764859303197,12.49367752,143.01,142.98,7.84]
[1764859303198,12.48367752,143.0,142.98,7.84]
[1764859303394,11.81367752,142.99,142.93,6.99634455]
[1764859303599,11.81367752,142.97,142.94,7.84]
[1764859303794,11.81367752,142.96,142.9,11.81367752]
[1764859304109,0.67,142.99,142.93,11.81367752]
[1764859304297,0.67,142.99,142.94,14.83592165]
[1764859304298,12.48367752,142.99,142.94,14.83592165]
[1764859304692,16.308864,143.02,142.94,14.83592165]
[1764859304693,11.81367752,143.02,142.96,11.81367752]
[1764859304893,11.81367752,143.01,142.95,12.48367752]
[1764859305096,11.81367752,142.99,142.94,48.63464153]
[1764859305396,11.81367752,143.01,142.95,12.48367752]
[1764859305707,18.80686926,143.0,142.95,0.67]
[1764859305911,0.67,143.01,142.96,6.99496362]
[1764859306219,12.48367752,143.01,142.96,24.48237268]
[1764859306394,7.630014,143.02,142.97,8.51]
[1764859306712,0.67,143.01,142.97,8.51]
[1764859307207,7.630014,143.02,142.97,8.51]
[1764859307420,7.630014,142.99,142.95,14.8353842]
[1764859307587,7.630014,142.97,142.93,6.99632411]
[1764859308007,8.300014,142.97,142.93,6.99632411]
[1764859308810,7.630014,142.96,142.93,6.99638021]
[1764859309011,7.630014,142.95,142.92,7.84]
[1764859309316,7.630014,142.94,142.92,7.84]
[1764859309501,7.630014,142.93,142.9,6.99772536]
[1764859310017,7.630014,142.94,142.92,6.99691274]
[1764859310221,7.630014,142.94,142.91,6.99725118]
[1764859310794,7.630014,142.94,142.92,6.99689053]
[1764859311103,7.630014,142.94,142.91,6.99724101]
[1764859312112,14.62600432,142.94,142.9,7.66770056]
[1764859312314,7.630014,142.91,142.88,6.99868098]
[1764859314316,0.67,142.9,142.84,8.80994492]
[1764859314534,7.630014,142.85,142.82,0.2]
[1764859314694,24.818864,142.9,142.82,0.2]
[1764859314695,7.630014,142.83,142.82,0.2]
[1764859315034,16.308864,142.87,142.82,7.20174362]
[1764859315191,7.630014,142.86,142.82,7.20174362]
[1764859315516,7.630014,142.84,142.82,0.2]
[1764859315701,8.300014,142.85,142.82,7.20173037]
[1764859315894,7.630014,142.86,142.82,25.37628155]
[1764859316099,6.99842461,142.89,142.82,24.70628155]
[1764859316320,7.630014,142.87,142.83,0.67]
[1764859316518,8.51,142.9,142.83,8.51]
[1764859316519,7.630014,142.88,142.83,8.51]
[1764859316894,7.630014,142.89,142.84,0.67]
[1764859317697,7.630014,142.89,142.84,8.300014]
[1764859317898,7.630014,142.89,142.85,0.67]
[1764859318107,7.630014,142.89,142.86,6.99986]
[1764859318398,8.300014,142.89,142.86,6.99986]
[1764859318603,15.29863259,142.89,142.85,0.67]
[1764859319210,7.630014,142.88,142.83,8.51]
[1764859319398,8.300014,142.89,142.85,7.00000306]
[1764859319599,0.67,142.89,142.85,7.00000306]
[1764859319824,7.630014,142.89,142.85,7.00000306]
[1764859320032,7.630014,142.88,142.84,7.0008401]
[1764859320303,7.630014,142.85,142.83,7.84]
[1764859320596,7.630014,142.86,142.83,7.84]
[1764859320792,7.630014,142.85,142.83,7.84]
[1764859320994,24.49447003,142.89,142.83,7.84]
[1764859320995,7.630014,142.86,142.83,7.84]
[1764859321598,7.630014,142.84,142.82,0.2]
[1764859321806,0.67,142.85,142.82,0.2]
[1764859322119,7.630014,142.84,142.82,0.2]
[1764859322420,7.630014,142.87,142.83,0.67]
[1764859323104,7.630014,142.9,142.84,7.630014]
[1764859323501,7.630014,142.9,142.84,8.300014]
[1764859323696,7.630014,142.89,142.84,0.67]
[1764859324101,7.630014,142.89,142.85,7.00035001]
[1764859324304,7.630014,142.89,142.84,0.67]
[1764859324305,7.630014,142.87,142.84,7.00083779]
[1764859324498,7.630014,142.88,142.84,24.50293804]
[1764859324705,7.630014,142.9,142.85,0.67]
[1764859324900,7.630014,142.86,142.82,24.348864]
[1764859325109,7.630014,142.86,142.82,23.5105578]
[1764859325110,7.630014,142.85,142.82,23.5105578]
[1764859325324,0.67,142.86,142.82,7.2016938]
[1764859325625,7.630014,142.84,142.82,0.2]
[1764859325809,7.630014,142.83,142.82,0.2]
[1764859326632,8.300014,142.83,142.82,0.2]
[1764859327418,15.30134425,142.83,142.82,0.2]
[1764859327926,24.11128917,142.83,142.82,0.2]
[1764859328928,15.30134425,142.83,142.82,0.2]
[1764859331929,7.630014,142.83,142.82,0.2]
[1764859332105,17.49904458,142.87,142.82,0.2]
[1764859332305,7.630014,142.85,142.82,7.87178782]
[1764859332529,7.630014,142.88,142.83,0.67]
[1764859333038,7.630014,142.88,142.83,8.300014]
[1764859333216,7.630014,142.88,142.83,0.67]
[1764859333419,7.630014,142.88,142.83,8.350014]
[1764859333931,7.630014,142.88,142.84,0.72]
[1764859334331,7.630014,142.87,142.82,25.42633862]
[1764859334536,14.62975313,142.87,142.82,14.83180144]
[1764859334828,7.630014,142.85,142.82,0.19999962]
[1764859335420,6.99906634,142.88,142.82,15.55166512]
[1764859335614,14.62908034,142.88,142.83,7.630014]
[1764859335810,7.84,142.9,142.84,7.630014]
[1764859336019,7.630014,142.9,142.85,7.630014]
[1764859336245,7.630014,142.9,142.85,8.350014]
[1764859336443,14.62797992,142.9,142.86,6.99986]
[1764859336642,15.27797992,142.9,142.86,6.99986]
[1764859336833,7.630014,142.9,142.86,7.71986]
[1764859337146,14.62762244,142.91,142.87,0.72]
[1764859337840,15.27762244,142.91,142.86,6.99986]
[1764859338148,15.27762244,142.91,142.86,7.71986]
[1764859338322,15.27762244,142.91,142.86,15.349874]
[1764859339841,7.630014,142.91,142.86,32.129524]
[1764859340052,7.630014,142.91,142.87,0.72]
[1764859340342,7.630014,142.92,142.87,0.72]
[1764859340509,8.80994492,142.95,142.87,0.72]
[1764859340510,14.62608324,142.94,142.89,7.630014]
[1764859340713,7.630014,142.92,142.88,7.84]
[1764859341240,7.630014,142.89,142.82,0.90018166]
[1764859341429,7.630014,142.89,142.81,75.0]
[1764859341430,16.308864,142.8,142.72,0.2]
[1764859341635,23.938878,142.73,142.72,0.2]
[1764859341938,23.938878,142.73,142.67,0.2]
[1764859341939,16.308864,142.7,142.67,0.2]
[1764859342116,7.630014,142.68,142.67,0.2]
[1764859342522,23.938878,142.68,142.67,0.2]
[1764859343421,7.630014,142.68,142.67,0.2]
[1764859343742,16.308864,142.72,142.67,7.92915078]
[1764859343916,7.630014,142.68,142.67,0.2]
[1764859344123,16.668864,142.72,142.67,0.2]
[1764859344124,9.16994492,142.71,142.67,0.2]
[1764859344322,7.630014,142.68,142.67,0.2]
[1764859344515,32.74882292,142.68,142.67,0.2]
[1764859344724,40.37883692,142.67,142.62,0.1]
[1764859345019,7.630014,142.63,142.62,0.1]
[1764859345514,7.01311452,142.59,142.56,0.1]
[1764859345723,7.630014,142.57,142.56,0.1]
[1764859345911,24.54590083,142.59,142.56,0.1]
[1764859346123,7.01311452,142.59,142.56,0.1]
[1764859346321,7.630014,142.57,142.56,0.1]
[1764859346730,33.71584575,142.59,142.56,0.1]
[1764859346731,24.90590083,142.59,142.56,0.1]
[1764859346923,7.630014,142.57,142.56,0.1]
[1764859347321,7.01311452,142.59,142.56,0.1]
[1764859347647,7.630014,142.58,142.56,0.1]
[1764859348025,7.630014,142.57,142.56,0.1]
[1764859348527,7.990014,142.57,142.56,0.1]
[1764859348731,7.630014,142.57,142.56,0.1]
[1764859349245,23.938878,142.57,142.56,0.1]
[1764859349554,7.630014,142.57,142.56,0.1]
[1764859349858,7.01114772,142.63,142.56,7.83458093]
[1764859350144,7.630014,142.61,142.57,0.72]
[1764859350449,24.89738949,142.64,142.56,0.1]
[1764859350620,7.630014,142.57,142.56,0.1]
[1764859351124,16.308864,142.61,142.56,0.82]
[1764859351326,7.630014,142.59,142.56,0.82]
[1764859351727,7.630014,142.59,142.56,7.83452318]
[1764859352328,7.01173517,142.62,142.57,0.72]
[1764859352528,7.630014,142.59,142.57,0.72]
[1764859352736,7.630014,142.6,142.57,0.72]
[1764859353048,7.630014,142.58,142.56,0.1]
[1764859353347,7.630014,142.58,142.56,0.82]
[1764859353717,7.630014,142.57,142.56,0.82]
[1764859353923,7.630014,142.57,142.56,0.1]
[1764859354330,26.70127449,142.61,142.56,0.82]
[1764859354331,7.630014,142.59,142.56,0.82]
[1764859354533,7.630014,142.59,142.56,7.83448668]
[1764859354739,7.630014,142.57,142.56,0.1]
[1764859355544,7.630014,142.58,142.56,7.83443981]
[1764859355749,8.33019604,142.61,142.56,7.83443981]
[1764859355942,8.33019604,142.61,142.57,0.72]
[1764859356136,15.510014,142.65,142.57,0.72]
[1764859356137,8.33019604,142.64,142.58,7.630014]
[1764859356460,8.33019604,142.64,142.59,7.88]
[1764859356758,0.70018204,142.66,142.59,16.230014]
[1764859356958,7.630014,142.64,142.6,0.72]
[1764859357154,7.630014,142.63,142.6,0.72]
[1764859357348,1.06018204,142.67,142.58,0.72]
[1764859357349,7.630014,142.62,142.58,0.72]
[1764859357556,7.630014,142.61,142.6,7.88]
[1764859357858,7.630014,142.61,142.58,0.72]
[1764859358165,7.630014,142.62,142.59,7.88]
[1764859358467,16.68994492,142.68,142.59,7.88]
[1764859358468,17.00904604,142.67,142.6,7.01258742]
[1764859358648,7.630014,142.66,142.61,0.72]
[1764859358850,8.33019604,142.65,142.61,0.72]
[1764859359336,7.630014,142.63,142.61,0.72]
[1764859359534,7.630014,142.63,142.62,7.88]
[1764859359949,7.630014,142.64,142.62,7.88]
[1764859360159,8.33019604,142.64,142.62,7.88]
[1764859360545,8.33019604,142.65,142.62,7.88]
[1764859360874,7.630014,142.63,142.59,7.88]
[1764859361035,7.630014,142.63,142.56,7.11446246]
[1764859361036,7.630014,142.6,142.56,0.1]
[1764859361365,0.70018204,142.59,142.56,0.1]
[1764859361539,8.80994492,142.61,142.56,0.82]
[1764859361734,7.01311452,142.59,142.56,8.72]
[1764859362155,0.70018204,142.6,142.56,8.72]
[1764859362156,7.71291493,142.6,142.56,15.73455832]
[1764859362362,7.630014,142.58,142.56,15.73455832]
[1764859362664,7.630014,142.59,142.56,15.01455511]
[1764859362876,0.70018204,142.6,142.56,15.01455511]
[1764859362877,7.630014,142.6,142.57,0.69]
[1764859363047,7.630014,142.58,142.56,8.0]
[1764859363358,7.630014,142.58,142.56,0.79]
[1764859363551,7.630014,142.58,142.57,7.9]
[1764859364770,7.630014,142.58,142.57,7.88]
[1764859365278,7.630014,142.58,142.56,0.79]
[1764859365460,7.630014,142.58,142.57,7.88]
[1764859366049,7.630014,142.6,142.57,8.57]
[1764859366247,7.630014,142.6,142.58,0.69]
[1764859366468,12.57808575,142.6,142.58,0.69]
[1764859366654,11.87790371,142.6,142.58,0.69]
[1764859366858,0.70018204,142.63,142.58,8.57]
[1764859367045,12.57808575,142.63,142.58,15.58357543]
[1764859367365,11.87790371,142.62,142.59,0.69]
[1764859368168,11.87790371,142.62,142.6,7.88]
[1764859368372,11.87790371,142.63,142.6,7.88]
[1764859368543,28.88694975,142.65,142.61,0.69]
[1764859368749,24.01929924,142.65,142.61,7.70209622]
[1764859369084,35.89720295,142.65,142.61,7.70209622]
[1764859369249,11.87790371,142.64,142.61,7.70209622]
[1764859369446,35.89720295,142.65,142.61,0.69]
[1764859369770,11.87790371,142.64,142.62,7.88]
[1764859370162,24.01929924,142.65,142.62,7.88]
[1764859370368,0.70018204,142.64,142.62,7.88]
[1764859371160,0.70018204,142.66,142.63,0.69]
[1764859371376,0.70018204,142.69,142.65,11.87790371]
[1764859371672,0.70018204,142.69,142.66,7.88]
[1764859371851,0.70018204,142.69,142.66,8.57]
[1764859372049,12.57808575,142.71,142.67,8.57]
[1764859372242,0.70018204,142.71,142.67,20.44790371]
[1764859372768,0.70018204,142.71,142.62,99.54070069]
[1764859372769,11.87790371,142.7,142.68,7.88]
[1764859372972,0.70018204,142.69,142.68,7.88]
[1764859373161,0.70018204,142.69,142.65,19.57767563]
[1764859373368,7.70847011,142.69,142.66,8.57]
[1764859373860,0.70018204,142.69,142.66,15.5796322]
[1764859374066,7.70844449,142.69,142.66,7.88]
[1764859374257,7.70844449,142.69,142.66,14.88967153]
[1764859374772,19.58597166,142.7,142.67,8.57]
[1764859375150,7.70806795,142.7,142.67,15.57915439]
[1764859375349,0.70018204,142.7,142.67,15.57915439]
[1764859375555,0.70018204,142.72,142.68,0.69]
[1764859375858,12.57808575,142.72,142.68,0.69]
[1764859376679,0.70018204,142.75,142.7,11.87790371]
[1764859376973,11.87790371,142.72,142.71,7.88]
[1764859377148,11.87790371,142.72,142.7,7.88]
[1764859377474,17.00904604,142.75,142.7,7.88]
[1764859377676,28.88694975,142.75,142.71,0.69]
[1764859377861,11.87790371,142.74,142.71,0.69]
[1764859378478,19.5845269,142.73,142.69,0.69]
[1764859378779,19.5845269,142.73,142.71,7.88]
[1764859378969,19.5845269,142.73,142.68,7.00838463]
[1764859379177,11.87790371,142.72,142.69,7.88]
[1764859379384,11.87790371,142.72,142.69,8.57]
[1764859379677,11.87790371,142.72,142.69,7.88]
[1764859380250,0.70018204,142.73,142.7,0.69]
[1764859380455,7.70610328,142.74,142.7,0.69]
[1764859380703,11.87790371,142.76,142.71,11.87790371]
[1764859380942,11.87790371,142.76,142.7,7.69738242]
[1764859380943,0.70018204,142.8,142.75,11.87790371]
[1764859381179,0.70018204,142.8,142.7,24.52665361]
[1764859381180,11.87790371,142.78,142.76,7.88]
[1764859381349,11.87790371,142.78,142.73,0.69]
[1764859381350,12.57808575,142.77,142.71,11.87790371]
[1764859381665,11.87790371,142.74,142.7,7.6975636]
[1764859381849,11.87790371,142.74,142.71,8.57]
[1764859382273,25.11880892,142.76,142.71,8.57]
[1764859382472,11.87790371,142.74,142.71,8.57]
[1764859382675,11.87790371,142.72,142.69,7.88]
[1764859382881,12.57808575,142.71,142.69,7.88]
[1764859383373,12.57808575,142.73,142.7,0.69]
[1764859383750,11.87790371,142.71,142.65,11.87790371]
[1764859383950,12.57808575,142.7,142.66,8.57]
[1764859384372,12.57808575,142.7,142.61,7.70197172]
[1764859384373,11.87790371,142.67,142.61,7.70197172]
[1764859384576,0.36,142.69,142.62,7.88]
[1764859384577,11.87790371,142.65,142.62,7.88]
[1764859384778,0.70018204,142.69,142.63,11.87790371]
[1764859385073,11.87790371,142.68,142.63,12.56790371]
[1764859385274,11.87790371,142.68,142.64,0.69]
[1764859385482,11.87790371,142.68,142.65,7.88]
[1764859385776,0.70018204,142.7,142.66,11.87790371]
[1764859386080,19.58584077,142.7,142.66,0.69]
[1764859386266,19.58584077,142.7,142.67,0.69]
[1764859386469,11.87790371,142.69,142.66,8.57]
[1764859386663,18.88644161,142.69,142.66,7.88]
[1764859386864,11.87790371,142.68,142.66,8.57]
[1764859387176,11.87790371,142.69,142.66,15.57966833]
[1764859387370,11.87790371,142.69,142.66,8.57]
[1764859387548,11.87790371,142.68,142.66,8.57]
[1764859387956,11.87790371,142.69,142.66,15.57962896]
[1764859388151,0.70018204,142.7,142.67,0.69]
[1764859388353,12.57808575,142.7,142.67,0.69]
[1764859389002,16.308864,142.72,142.67,0.69]
[1764859389003,18.88454513,142.73,142.67,19.57672501]
[1764859389207,18.88454513,142.73,142.67,37.09968008]
[1764859389505,12.57808575,142.72,142.68,0.69]
[1764859389803,11.87790371,142.7,142.65,0.69]
[1764859390001,11.87790371,142.69,142.67,7.88]
[1764859390366,11.87790371,142.7,142.67,8.57]
[1764859390797,11.87790371,142.69,142.67,7.88]
[1764859391107,18.88610054,142.7,142.67,8.57]
[1764859391600,18.88610054,142.7,142.67,7.88]
[1764859391905,11.87790371,142.69,142.67,7.88]
[1764859392077,7.00819683,142.7,142.67,8.57]
[1764859392078,18.88610054,142.7,142.67,8.57]
[1764859392279,11.87790371,142.68,142.62,0.69]
[1764859392588,11.87790371,142.66,142.63,7.86]
[1764859393101,11.87790371,142.66,142.63,0.65]
[1764859393298,11.87790371,142.66,142.63,15.52114329]
[1764859393499,11.87790371,142.66,142.63,0.65]
[1764859393793,11.87790371,142.65,142.61,0.65]
[1764859393999,11.87790371,142.65,142.62,7.86]
[1764859394393,11.87790371,142.66,142.63,0.65]
[1764859394788,18.88766387,142.66,142.63,0.65]
[1764859395099,28.88694975,142.68,142.63,7.66099389]
[1764859395275,11.87790371,142.67,142.63,7.66099389]
[1764859395471,11.87790371,142.67,142.64,0.65]
[1764859396076,18.88618362,142.69,142.65,7.86]
[1764859396294,11.87790371,142.68,142.65,7.86]
[1764859396498,11.87790371,142.68,142.65,8.51]
[1764859396995,11.87790371,142.68,142.66,0.65]
[1764859397195,18.88666576,142.68,142.66,0.65]
[1764859397393,18.88666576,142.68,142.65,7.86]
[1764859397591,18.88666576,142.68,142.64,7.6605374]
[1764859397592,11.87790371,142.66,142.62,0.65]
[1764859397776,11.87790371,142.66,142.63,7.86]
[1764859397977,11.87790371,142.66,142.63,15.52109579]
[1764859398400,11.87790371,142.64,142.62,7.86]
[1764859398990,11.87790371,142.64,142.57,0.65]
[1764859398991,11.87790371,142.63,142.57,0.65]
[1764859399189,11.87790371,142.62,142.59,7.86]
[1764859399395,11.87790371,142.6,142.57,7.86]
[1764859399613,11.87790371,142.6,142.57,8.51]
[1764859399788,24.53730169,142.64,142.58,0.65]
[1764859399992,11.87790371,142.62,142.58,0.65]
[1764859400204,7.0106612,142.64,142.58,0.65]
[1764859400508,11.87790371,142.63,142.58,0.65]
[1764859401007,11.87790371,142.63,142.59,7.01311452]
[1764859401306,11.87790371,142.63,142.6,7.86]
[1764859401605,11.87790371,142.63,142.6,8.51]
[1764859401802,18.88856491,142.64,142.61,0.65]
[1764859402010,11.87790371,142.62,142.6,7.86]
[1764859402213,11.87790371,142.63,142.6,8.51]
[1764859402710,11.87790371,142.62,142.59,14.87311452]
[1764859402902,11.87790371,142.63,142.59,15.52311452]
[1764859403106,7.0106612,142.64,142.6,0.65]
[1764859403288,11.87790371,142.64,142.6,0.65]
[1764859403494,24.018728,142.66,142.6,0.65]
[1764859403705,11.87790371,142.65,142.6,0.65]
[1764859404296,19.58776771,142.66,142.6,0.65]
[1764859404693,11.87790371,142.68,142.62,11.87790371]
[1764859404897,11.87790371,142.68,142.63,7.86]
[1764859404898,12.57808575,142.68,142.63,7.86]
[1764859405192,11.87790371,142.67,142.63,8.51]
[1764859405387,11.87790371,142.67,142.64,0.65]
[1764859405818,0.70018204,142.69,142.64,12.52790371]
[1764859406115,7.00672645,142.72,142.65,11.87790371]
[1764859406116,7.70690849,142.72,142.65,11.87790371]
[1764859406295,11.87790371,142.71,142.66,8.51]
[1764859406711,11.87790371,142.71,142.67,7.65876534]
[1764859406914,9.16994492,142.75,142.67,7.65876534]
[1764859406915,7.00488241,142.76,142.69,11.87790371]
[1764859407115,8.80994492,142.77,142.7,19.73790371]
[1764859407116,18.88229817,142.77,142.7,19.73790371]
[1764859407303,18.88229817,142.77,142.7,7.86]
[1764859407304,11.87790371,142.77,142.7,7.86]
[1764859407508,11.87790371,142.77,142.71,12.52790371]
[1764859407711,11.87790371,142.78,142.71,12.52790371]
[1764859408023,11.87790371,142.77,142.72,0.65]
[1764859408409,11.87790371,142.77,142.73,7.00623554]
[1764859408606,12.57808575,142.78,142.74,7.86]
[1764859408919,12.57808575,142.8,142.74,20.38790371]
[1764859409105,11.87790371,142.79,142.75,0.65]
[1764859409809,11.87790371,142.79,142.75,7.65476861]
[1764859410008,12.57808575,142.79,142.75,7.65476861]
[1764859410210,12.57808575,142.8,142.76,0.65]
[1764859410416,11.87790371,142.8,142.76,0.65]
[1764859410727,12.57808575,142.79,142.75,7.00476861]
[1764859410900,11.87790371,142.77,142.72,18.16634233]
[1764859411113,11.87790371,142.77,142.74,7.00539661]
[1764859411314,11.87790371,142.78,142.75,7.0048737]
[1764859411517,7.00283048,142.8,142.75,7.0048737]
[1764859411518,12.57808575,142.8,142.75,7.0048737]
[1764859411814,0.36,142.84,142.77,7.0042726]
[1764859411815,0.2,142.83,142.77,7.0042726]
[1764859412018,11.87790371,142.82,142.78,8.51]
[1764859412229,0.2,142.83,142.78,8.51]
[1764859412402,0.2,142.83,142.79,0.65]
[1764859412610,0.2,142.83,142.8,11.87790371]
[1764859412923,0.2,142.83,142.81,0.65]
[1764859413128,0.2,142.83,142.82,7.86]
[1764859413529,0.2,142.83,142.82,8.51]
[1764859413725,0.2,142.83,142.82,7.86]
[1764859414433,0.2,142.83,142.82,15.51182047]
[1764859414626,0.2,142.83,142.82,8.51]
[1764859415042,0.2,142.83,142.79,19.53072789]
[1764859415243,0.2,142.83,142.82,7.86]
[1764859416513,0.2,142.83,142.76,16.958864]
[1764859416514,12.43790371,142.83,142.76,16.958864]
[1764859416710,11.87790371,142.81,142.77,7.86]
[1764859416921,12.57808575,142.82,142.77,0.65]
[1764859417119,12.57808575,142.82,142.78,8.51]
[1764859417622,7.90175134,142.83,142.79,0.65]
[1764859417833,0.90018204,142.83,142.8,7.00280112]
[1764859418430,7.90158791,142.83,142.79,7.6531797]
[1764859418628,0.90018204,142.83,142.79,25.16133682]
[1764859418832,0.2,142.83,142.8,12.52790371]
[1764859419150,0.2,142.83,142.81,7.86]
[1764859419322,0.2,142.83,142.81,8.51]
[1764859419520,0.2,142.83,142.82,0.65]
[1764859420838,0.2,142.83,142.82,19.52972418]
[1764859421033,0.2,142.83,142.82,7.65182047]
[1764859421244,0.2,142.83,142.82,19.52972418]
[1764859421833,0.2,142.87,142.82,97.16218664]
[1764859422025,0.2,142.87,142.86,18.87776371]
[1764859422228,0.70018204,142.92,142.86,26.73776371]
[1764859422455,0.70018204,142.93,142.87,0.67]
[1764859422642,0.70018204,142.93,142.88,11.87790371]
[1764859422853,0.70018204,142.93,142.89,7.86]
[1764859423157,12.57808575,142.93,142.89,7.86]
[1764859423333,19.57453636,142.93,142.89,8.57]
[1764859423656,19.57453636,142.93,142.89,7.86]
[1764859423657,20.13453636,142.93,142.89,7.86]
[1764859424448,11.87790371,142.92,142.89,7.86]
[1764859424660,12.57808575,142.91,142.88,7.86]
[1764859425551,12.57808575,142.91,142.87,7.86]
[1764859425552,11.87790371,142.9,142.87,7.86]
[1764859425847,11.87790371,142.93,142.88,12.58790371]
[1764859426051,23.30536665,142.93,142.88,19.58650156]
[1764859426247,11.87790371,142.91,142.87,14.85917948]
[1764859426448,1.26018204,142.92,142.78,76.99999999]
[1764859426449,11.87790371,142.88,142.83,0.71]
[1764859426639,0.70018204,142.87,142.83,8.57]
[1764859427045,11.87790371,142.86,142.83,7.86]
[1764859427346,11.87790371,142.88,142.84,7.71052428]
[1764859427530,0.70018204,142.9,142.85,11.87790371]
[1764859427729,0.70018204,142.9,142.86,20.42790371]
[1764859427959,0.70018204,142.91,142.86,20.42790371]
[1764859428129,12.57808575,142.91,142.86,8.55]
[1764859428450,8.34231851,142.91,142.86,8.55]
[1764859428853,7.64213647,142.9,142.86,8.55]
[1764859429039,7.64213647,142.9,142.86,7.84]
[1764859429237,1.26018204,142.91,142.87,8.35213647]
[1764859429238,0.70018204,142.91,142.87,8.35213647]
[1764859429440,0.76,142.98,142.9,24.49265219]
[1764859429773,7.64213647,142.94,142.91,7.84]
[1764859430258,8.34231851,142.93,142.9,7.84]
[1764859430474,7.64213647,142.92,142.9,7.84]
[1764859430831,7.64213647,142.91,142.87,6.99906197]
[1764859431033,7.64213647,142.91,142.86,23.95100047]
[1764859431034,0.70018204,142.9,142.88,7.84]
[1764859431253,7.64213647,142.9,142.88,7.84]
[1764859433259,15.33993753,142.91,142.88,7.84]
[1764859434054,15.33993753,142.91,142.88,14.83882472]
[1764859434264,16.308864,142.94,142.89,8.35213647]
[1764859434552,8.34231851,142.93,142.89,0.71]
[1764859435140,7.64213647,142.92,142.89,0.71]
[1764859435348,0.70018204,142.93,142.89,0.71]
[1764859435349,7.64213647,142.91,142.89,7.84]
[1764859435655,8.34231851,142.91,142.89,7.84]
[1764859435953,14.64003709,142.9,142.87,7.84]
[1764859436155,7.64213647,142.89,142.87,7.84]
[1764859436346,6.99790062,142.9,142.87,7.84]
[1764859436347,7.64213647,142.9,142.87,7.84]
[1764859436655,0.70018204,142.91,142.87,7.84]
[1764859436836,7.64213647,142.93,142.88,8.35213647]
[1764859437032,7.64213647,142.93,142.89,0.71]
[1764859437635,7.64213647,142.94,142.9,7.84]
[1764859437834,15.33793559,142.95,142.91,6.99741095]
[1764859438143,7.64213647,142.94,142.91,6.99741095]
[1764859438345,7.64213647,142.94,142.9,15.54770369]
[1764859440057,8.34231851,142.95,142.91,0.71]
[1764859440234,15.33779104,142.95,142.91,0.71]
[1764859440437,0.2,142.98,142.94,7.64213647]
[1764859440636,0.2,142.98,142.94,15.48213647]
[1764859440850,14.83618236,142.98,142.95,7.84]
[1764859441056,7.64213647,142.96,142.93,7.84]
[1764859441255,8.34231851,142.97,142.93,8.55]
[1764859441473,0.2,142.98,142.95,6.99545295]
[1764859441965,0.2,142.98,142.9,25.11880892]
[1764859441966,7.64213647,142.97,142.92,14.6388642]
[1764859442157,0.70018204,142.96,142.94,7.84]
[1764859442358,0.90018204,142.98,142.94,15.54585732]
[1764859442569,0.90018204,142.98,142.95,0.71]
[1764859442774,0.90018204,142.98,142.94,15.54585732]
[1764859442973,8.54231851,142.98,142.94,15.54585732]
[1764859443178,8.54231851,142.98,142.94,14.83585732]
[1764859443663,15.53635918,142.98,142.94,14.83585732]
[1764859443987,7.64213647,142.96,142.93,7.84]
[1764859444175,7.64213647,142.97,142.93,8.55]
[1764859444482,7.64213647,142.94,142.89,15.35025576]
[1764859444687,8.34231851,142.93,142.89,7.70811929]